Cogmind - Beta 15 @@@ ROGUE MODE // 2025.05.31 @ 16:21:57 Player: Cinder Result: Destroyed by S-27 Virus with Autogun Performance ------------- Evolutions (3) 1500 Regions Visited (9) 1800 Robots Destroyed (34) 170 Value Destroyed (1235) 1235 Prototype IDs (10) 200 Alien Tech Used (0) 0 Bonus (540) 540 TOTAL SCORE: 5445 Bonus ------- Pacifist 200 Follower Combat Kills 40 Met Data Miner 300 Cogmind --------- Core Integrity 0/700 Matter 295/300 Energy 53/100 System Corruption 7% Temperature Cool (2) Movement Flying (35) Location -6/Proximity Caves Parts ------- > --- POWER (1) -------- (None) > --- PROPULSION (4) --- VTOL Module > --- UTILITY (4) ------ Improved Terrain Scan Processor Advanced Targeting Computer Experimental Thermal Shield Hacking Suite > --- WEAPON (4) ------- (None) > --- INVENTORY (5) ---- Neutrino Core Medium Treads Improved Propulsion Shielding Battle Cannon Rocket Launcher Peak State ------------ > --- POWER ------------ Neutrino Core > --- PROPULSION ------- Aluminum Leg Aluminum Leg VSS Leg VSS Leg > --- UTILITY ---------- Advanced Targeting Computer Improved Light Armor Plating Shield Generator Hacking Suite > --- WEAPON ----------- Arc Projector Gauss Rifle Gauss Rifle Gauss Rifle > --- INVENTORY -------- Improved Ion Engine Carbon-fiber Leg Gauss Rifle Grenade Launcher Rocket Launcher [Rating: 42] Favorites ----------- Power Light Ion Engine Engine Light Ion Engine Power Core Neutrino Core Propulsion Aluminum Leg Treads Light Treads Leg Aluminum Leg Flight Unit VTOL Module Utility Small Storage Unit Device Shield Generator Storage Small Storage Unit Processor Advanced Targeting Computer Hackware Hacking Suite Protection Improved Light Armor Plating Weapon Heavy Assault Rifle Energy Gun Shock Rifle Ballistic Gun Heavy Assault Rifle Launcher Grenade Launcher Build | -11 -10 -10 -9 -9 -8 -7 -7 -7 -6 ------- Run | Yrd Mat Min Mat Sto Mat Fac Low Dat Pro Slots Evolved 6 | . . . 2 . 2 2 . . . Power . | . . . . . . . . . . Propulsion 2 | . . . 2 . . . . . . Utility 2 | . . . . . 2 . . . . Weapon 2 | . . . . . . 2 . . . Parts Attached 52 | 7 1 . 6 13 6 9 3 . 7 Power 7 | 1 . . 1 3 1 1 . . . Engine 6 | 1 . . 1 3 1 . . . . Core 1 | . . . . . . 1 . . . Reactor . | . . . . . . . . . . Propulsion 16 | 3 . . 3 4 2 . 1 . 3 Treads 3 | 1 . . 1 1 . . . . . Leg 10 | 2 . . 2 3 2 . 1 . . Wheel . | . . . . . . . . . . Hover . | . . . . . . . . . . Flight 3 | . . . . . . . . . 3 Utility 11 | 1 1 . 1 2 2 1 1 . 2 Device 3 | . 1 . . 1 . . . . 1 Storage 1 | 1 . . . . . . . . . Processor 2 | . . . . . 1 . 1 . . Hackware 1 | . . . . . . 1 . . . Protection 4 | . . . 1 1 1 . . . 1 Artifact . | . . . . . . . . . . Weapon 18 | 2 . . 1 4 1 7 1 . 2 Energy Gun 3 | . . . . . . 2 1 . . Energy Cannon . | . . . . . . . . . . Ballistic Gun 13 | 2 . . 1 3 1 4 . . 2 Ballistic Cannon . | . . . . . . . . . . Launcher 2 | . . . . 1 . 1 . . . Special Weapon . | . . . . . . . . . . Impact Weapon . | . . . . . . . . . . Slashing Weapon . | . . . . . . . . . . Piercing Weapon . | . . . . . . . . . . Special Melee Weapon . | . . . . . . . . . . Unidentified Prototypes 1 | . . . . . . . . . 1 Parts Lost 29 | . . . 1 10 1 12 . . 5 Power 3 | . . . . 2 . 1 . . . Propulsion 10 | . . . . 4 . 4 . . 2 Utility 5 | . . . 1 1 1 2 . . . Weapon 11 | . . . . 3 . 5 . . 3 Highest Loss Streak 12 | . . . 1 10 1 12 . . 3 To Critical Strikes . | . . . . . . . . . . Average Backups 5 | 3 7 8 7 6 6 4 3 3 4 Power . | . 1 1 1 . . . 1 1 1 Propulsion 2 | 2 4 3 3 3 2 1 . . 1 Utility . | . . 1 . . . . . . . Weapon 2 | . 1 2 3 2 3 2 2 2 1 Tool/Special . | . . . . . . . . . . Unused Backups 13 | . . 1 4 . 4 1 . . 3 Power 2 | . . . 1 . . . . . 1 Propulsion 7 | . . 1 1 . 4 . . . 1 Utility 2 | . . . 1 . . 1 . . . Weapon 2 | . . . 1 . . . . . 1 Tool/Special . | . . . . . . . . . . Average Slot Usage (%) 80 | . 87 100 91 87 90 93 30 38 42 Engine 7 | . 14 14 11 9 9 5 . . . Treads 2 | . . . 8 1 6 . . . . Leg 24 | . 28 28 27 36 29 28 7 7 3 Flight 1 | . . . . . . . . . 8 Device 5 | . 1 14 8 . 8 6 . . . Storage 6 | . 14 14 11 11 5 . . . . Processor 5 | . . . . . 3 7 11 15 15 Hackware 2 | . . . . . . 5 7 7 7 Protection 4 | . . . 1 6 9 6 . . 2 Energy Gun 1 | . . . . . . 6 3 7 . Ballistic Gun 17 | . 28 28 22 19 18 22 . . 4 Peak Build Rating 42 | 6 7 7 16 17 26 42 16 16 23 Average Rating 18 | 4 6 7 9 14 21 35 13 16 17 On Entrance 11 | . 6 7 7 16 17 26 7 16 16 Naked Turns . | . . . . . . . . . . Heaviest Build 35 | 10 11 11 15 21 23 35 3 3 7 Greatest Support 44 | 20 20 20 44 44 44 44 3 3 12 Greatest Overweight (x) 1 | . . . . . . 1 . . 1 Average Overweight (x) . | . . . . . . . . . . Largest Inventory Capacity 8 | 8 8 8 8 8 8 5 5 5 5 Average Capacity 6 | 6 8 8 8 8 6 5 5 5 5 Most Carried 8 | 6 8 8 8 8 8 5 3 3 5 Average Carried 6 | 3 7 8 7 6 6 4 3 3 4 Final Capacity 8 | 8 8 8 8 8 5 5 5 5 5 Final Carried 8 | 6 8 8 8 8 5 4 3 3 5 Class Distribution -------------------- 51% | Mutant 23% | Scavenger-Mutant 8% | Sprinter 7% | Scavenger-Tank 6% | Tank Dominant Class ---------------- Mutant | -10/Materials Mutant | -10/Mines Mutant | -9/Materials Mutant | -9/Storage Scavenger-Mutant | -8/Materials Scavenger-Tank | -7/Factory Scavenger-Tank | -7/Lower Caves Mutant | -7/Data Miner Sprinter | -6/Proximity Caves Resources | -11 -10 -10 -9 -9 -8 -7 -7 -7 -6 ----------- Run | Yrd Mat Min Mat Sto Mat Fac Low Dat Pro Matter Collected 980 | 238 32 . 94 255 202 . 61 . 98 Remotely . | . . . . . . . . . . Salvage Created 1162 | . . . 115 545 388 64 . . 50 Parts 64 | . . . 9 26 23 5 . . 1 Haulers Intercepted . | . . . . . . . . . . Recyclers Shooed 3 | . . . . 2 . 1 . . . Parts Field Recycled . | . . . . . . . . . . Retrieved Matter . | . . . . . . . . . . Parts Self-Destructed 1 | . . . . . . . . . 1 Prevented . | . . . . . . . . . . Kills | -11 -10 -10 -9 -9 -8 -7 -7 -7 -6 ------- Run | Yrd Mat Min Mat Sto Mat Fac Low Dat Pro Combat Hostiles Destroyed 33 | . . . 5 17 8 1 . . 2 Guns 23 | . . . 5 7 8 1 . . 2 AOE 10 | . . . . 10 . . . . . Classes Destroyed 5 | . . . 2 1 . 2 . . . Worker 1 | . . . . . . 1 . . . Swarmer 6 | . . . 4 . . . . . 2 Grunt 17 | . . . . 11 6 . . . . Duelist 1 | . . . . . . 1 . . . Sentry 9 | . . . 1 6 2 . . . . Best Kill Streak 15 | . . . 4 15 5 2 . . 2 Combat Bots Only 15 | . . . 4 15 5 1 . . 2 Max Kills in Single Turn 3 | . . . 1 3 1 1 . . 1 Gunslinging . | . . . . . . . . . . Exploded 3 | . . . . 3 . . . . . Melee . | . . . . . . . . . . Uniques/NPCs Destroyed . | . . . . . . . . . . Combat | -11 -10 -10 -9 -9 -8 -7 -7 -7 -6 -------- Run | Yrd Mat Min Mat Sto Mat Fac Low Dat Pro Hostile Shots Fired 503 | . . . 33 134 56 173 9 . 98 Missed 195 | . . . 8 40 19 66 5 . 57 Hits 308 | . . . 25 94 37 107 4 . 41 Melee 2 | . . . . . . 2 . . . Projectile 306 | . . . 25 94 37 105 4 . 41 Critical Strikes 8 | . . . . 2 2 3 . . 1 Damage Taken 4165 | . . . 249 1308 420 1378 74 . 736 Core 1069 | . . . 29 290 50 369 52 . 279 Absorbed by Shields 177 | . . . . . 160 17 . . . Redirected to Shielding 30 | . . . . . . . . . 30 Ignored by Resistances 11 | . . . . . . . . . 11 Core Remaining (%) 77 | 100 . 100 . 20 90 . . . . Volleys Fired 60 | . . . 12 22 21 3 . . 2 Largest 3 | . . . 2 2 2 3 . . 1 Hottest 84 | . . . 40 53 46 84 . . 28 Shots Fired 118 | . . . 24 41 42 9 . . 2 Gun 108 | . . . 24 31 42 9 . . 2 Cannon . | . . . . . . . . . . Launcher 10 | . . . . 10 . . . . . Special . | . . . . . . . . . . Kinetic 108 | . . . 24 31 42 9 . . 2 Thermal . | . . . . . . . . . . Explosive 10 | . . . . 10 . . . . . Electromagnetic . | . . . . . . . . . . Robot Hit Streak 18 | . . . 8 12 18 9 . . 2 Robot Miss Streak 4 | . . . 2 1 4 1 . . . Penetration Max 1 | . . . . . . 1 . . . Secondary Targets 6 | . . . 2 . 3 1 . . . Max Gunslinging Chain 1 | . . . 1 . 1 1 . . . Shots Hit Robots 88 | . . . 17 30 33 6 . . 2 Core Hits 69 | . . . 8 36 20 3 . . 2 Critical Kills 1 | . . . . . . . . . 1 Critical Parts Destroyed . | . . . . . . . . . . Critical Strikes 1 | . . . . . . . . . 1 Destroy 1 | . . . . . . . . . 1 Melee Attacks . | . . . . . . . . . . Impact . | . . . . . . . . . . Slashing . | . . . . . . . . . . Piercing . | . . . . . . . . . . Sneak Attacks . | . . . . . . . . . . Combat Hostiles . | . . . . . . . . . . Follow-up Attacks . | . . . . . . . . . . Damage Inflicted 2025 | . . 8 139 1103 503 229 . . 43 Guns 1200 | . . . 139 302 503 213 . . 43 Cannons . | . . . . . . . . . . Explosions 778 | . . . . 778 . . . . . Melee . | . . . . . . . . . . Ramming 47 | . . 8 . 23 . 16 . . . Kinetic 1200 | . . . 139 302 503 213 . . 43 Thermal . | . . . . . . . . . . Explosive 778 | . . . . 778 . . . . . Electromagnetic . | . . . . . . . . . . Impact . | . . . . . . . . . . Slashing . | . . . . . . . . . . Piercing . | . . . . . . . . . . Highest Corruption 7 | . . . . . . 7 7 7 7 Average Corruption 6 | . . . . . . 3 7 7 7 Corruption Purged . | . . . . . . . . . . Corruption Blocked . | . . . . . . . . . . Effects 8 | . . . . . . . 1 1 6 Message Errors 3 | . . . . . . . . . 3 Matter Fused 2 | . . . . . . . . 1 1 Heat Flow Errors 1 | . . . . . . . . . 1 Data Loss (minor) 2 | . . . . . . . 1 . 1 Overload Shots . | . . . . . . . . . . Overflow Damage . | . . . . . . . . . . Projectiles . | . . . . . . . . . . Explosions . | . . . . . . . . . . Melee . | . . . . . . . . . . Knockbacks . | . . . . . . . . . . Impact . | . . . . . . . . . . Kinetic . | . . . . . . . . . . Secondary . | . . . . . . . . . . Self-Inflicted Damage 47 | . . . . 40 . 7 . . . Shots 3 | . . . . 3 . . . . . Rammed 3 | . . . . . . 3 . . . Targets Rammed 8 | . . 1 . 3 1 3 . . . Kicked 5 | . . 1 . 3 1 . . . . Crushed . | . . . . . . . . . . Highest Temperature 157 | . . . 6 28 12 157 . . 97 Average Temperature 31 | . . . 6 10 5 64 . . 49 Received Heat Transfer 1452 | . . . 45 495 225 507 . . 180 Siege Activations . | . . . . . . . . . . Martial Activations . | . . . . . . . . . . Shielding Activations . | . . . . . . . . . . Robots Disrupted . | . . . . . . . . . . Combat Hostiles . | . . . . . . . . . . Robots Corrupted . | . . . . . . . . . . Combat Hostiles . | . . . . . . . . . . Parts Fried . | . . . . . . . . . . Impact Corruptions . | . . . . . . . . . . Robots Melted . | . . . . . . . . . . Combat Hostiles . | . . . . . . . . . . Parts Melted . | . . . . . . . . . . Heat Transferred . | . . . . . . . . . . Parts Sabotaged . | . . . . . . . . . . Parts Stolen . | . . . . . . . . . . Parts Stripped . | . . . . . . . . . . Power Chain Reactions . | . . . . . . . . . . Alert | -11 -10 -10 -9 -9 -8 -7 -7 -7 -6 ------- Run | Yrd Mat Min Mat Sto Mat Fac Low Dat Pro Maximum Alert Level 1 | . . . . 1 . . . . . Low Security (%) 92 | 100 100 100 100 59 100 100 . . . Level 1 7 | . . . . 40 . . . . . Level 2 . | . . . . . . . . . . Level 3 . | . . . . . . . . . . Level 4 . | . . . . . . . . . . Level 5 . | . . . . . . . . . . High Security . | . . . . . . . . . . Max Security . | . . . . . . . . . . Peak Influence 346 | . . . 80 346 197 81 . . . Initial 137 | . . . . 8 137 81 . . . Average 56 | . . . 35 134 84 20 . . . Influence Increases 1296 | . . . 120 527 247 35 . . 367 Destroy 0b10 Robot/C 700 | . . . 100 340 160 20 . . 80 Destroy 0b10 Robot/NC 5 | . . . . . . 5 . . . Destroy Leader 180 | . . . 20 100 40 10 . . 10 Allied During Kill 22 | . . . . . . . . . 22 Successful Hack 26 | . . . . 26 . . . . . Destroy Structure 33 | . . . . 31 2 . . . . Lose Combat Pursuer 330 | . . . . 30 45 . . . 255 Influence Decreases 1134 | . . . 100 221 392 216 . . 205 Entered New Map 301 | . . . . 12 189 100 . . . Time Decay 638 | . . . 90 119 203 81 . . 145 Lost Part 175 | . . . 10 90 . 35 . . 40 Lost Ally 20 | . . . . . . . . . 20 Squads Dispatched 5 | . . . . 2 2 1 . . . Investigation . | . . . . . . . . . . Extermination 1 | . . . . . . 1 . . . Reinforcement 4 | . . . . 2 2 . . . . Assault . | . . . . . . . . . . Garrison . | . . . . . . . . . . Intercept . | . . . . . . . . . . Searches Triggered . | . . . . . . . . . . Construction Impeded . | . . . . . . . . . . Haulers Reinforced . | . . . . . . . . . . Active Scanning Responses . | . . . . . . . . . . Cargo Convoy Interrupts . | . . . . . . . . . . Stealth | -11 -10 -10 -9 -9 -8 -7 -7 -7 -6 --------- Run | Yrd Mat Min Mat Sto Mat Fac Low Dat Pro Distress Signals 3 | . . . 1 . 2 . . . . Communications Jammed . | . . . . . . . . . . Distress Signals . | . . . . . . . . . . Times Spotted 83 | . 1 . 6 20 14 12 1 . 29 Peak Tracking Total 15 | . 1 . 5 15 6 11 1 . 10 Tactical Retreats 10 | . . . . 2 1 . . . 7 Traps | -11 -10 -10 -9 -9 -8 -7 -7 -7 -6 ------- Run | Yrd Mat Min Mat Sto Mat Fac Low Dat Pro Traps Triggered . | . . . . . . . . . . Indirectly . | . . . . . . . . . . Trap Hack Attempts . | . . . . . . . . . . Triggered . | . . . . . . . . . . Disarmed . | . . . . . . . . . . Reprogrammed . | . . . . . . . . . . Reused . | . . . . . . . . . . Traps Extracted . | . . . . . . . . . . Installed . | . . . . . . . . . . Triggered . | . . . . . . . . . . Machines | -11 -10 -10 -9 -9 -8 -7 -7 -7 -6 ---------- Run | Yrd Mat Min Mat Sto Mat Fac Low Dat Pro Machines Disabled . | . . . . . . . . . . Max in Single Turn . | . . . . . . . . . . Machines Repaired . | . . . . . . . . . . Machines Dismantled . | . . . . . . . . . . Machines Sabotaged . | . . . . . . . . . . Overloaded Fab Kills . | . . . . . . . . . . Hacking | -11 -10 -10 -9 -9 -8 -7 -7 -7 -6 --------- Run | Yrd Mat Min Mat Sto Mat Fac Low Dat Pro Machines Accessed 11 | . . . 3 4 . . . 4 . Terminals 7 | . . . 3 4 . . . . . Fabricators . | . . . . . . . . . . Repair Stations . | . . . . . . . . . . Recycling Units . | . . . . . . . . . . Scanalyzers . | . . . . . . . . . . Garrison Access . | . . . . . . . . . . Total Hacks 47 | . . . 6 10 . . . 31 . Successful 38 | . . . 1 6 . . . 31 . Failed 9 | . . . 5 4 . . . . . Catastrophic 3 | . . . 2 1 . . . . . Database Lockouts . | . . . . . . . . . . Manual . | . . . . . . . . . . Terminals 16 | . . . 6 10 . . . . . Fabricators . | . . . . . . . . . . Repair Stations . | . . . . . . . . . . Recycling Units . | . . . . . . . . . . Scanalyzers . | . . . . . . . . . . Garrison Access . | . . . . . . . . . . Terminal Hacks 38 | . . . 1 6 . . . 31 . Record 11 | . . . . . . . . 11 . Part Schematic 12 | . . . . 1 . . . 11 . Robot Schematic 6 | . . . . . . . . 6 . Prototype ID Bank 3 | . . . . . . . . 3 . Open Door 1 | . . . . 1 . . . . . Emergency Access Points 1 | . . . . 1 . . . . . Transport Status 1 | . . . . 1 . . . . . Registered Components 1 | . . . 1 . . . . . . Zone Layout 2 | . . . . 2 . . . . . Fabricator Hacks . | . . . . . . . . . . Repair Station Hacks . | . . . . . . . . . . Recycling Unit Hacks . | . . . . . . . . . . Scanalyzer . | . . . . . . . . . . Garrison Access Hacks . | . . . . . . . . . . Unauthorized Hacks . | . . . . . . . . . . Terminals . | . . . . . . . . . . Fabricators . | . . . . . . . . . . Repair Stations . | . . . . . . . . . . Recycling Units . | . . . . . . . . . . Scanalyzers . | . . . . . . . . . . Garrison Access . | . . . . . . . . . . Data Cores Recovered . | . . . . . . . . . . Used . | . . . . . . . . . . Hacking Detections 5 | . . . 2 3 . . . . . Full Trace Events 1 | . . . 1 . . . . . . Feedback Events . | . . . . . . . . . . Feedback Blocked . | . . . . . . . . . . Robot Schematics Acquired 6 | . . . . . . . . 6 . Robots Built . | . . . . . . . . . . Authchips . | . . . . . . . . . . Time . | . . . . . . . . . . Total Robot Build Rating . | . . . . . . . . . . Part Schematics Acquired 12 | . . . . 1 . . . 11 . Parts Built . | . . . . . . . . . . Authchips . | . . . . . . . . . . Time . | . . . . . . . . . . Total Part Build Rating . | . . . . . . . . . . Parts Repaired . | . . . . . . . . . . Time . | . . . . . . . . . . Parts Recycled . | . . . . . . . . . . Recycled Matter . | . . . . . . . . . . Retrieved Matter . | . . . . . . . . . . Retrieved Components . | . . . . . . . . . . Parts Scanalyzed . | . . . . . . . . . . Part Schematics Acquired . | . . . . . . . . . . Parts Damaged . | . . . . . . . . . . Bothacking | -11 -10 -10 -9 -9 -8 -7 -7 -7 -6 ------------ Run | Yrd Mat Min Mat Sto Mat Fac Low Dat Pro Used RIF Installer . | . . . . . . . . . . Robots Hacked . | . . . . . . . . . . Non-combat . | . . . . . . . . . . Combat . | . . . . . . . . . . Robot Hacks Applied . | . . . . . . . . . . Relay Couplers Released . | . . . . . . . . . . Fabnet Peak Effective % . | . . . . . . . . . . Robots Rewired . | . . . . . . . . . . Allies Hacked . | . . . . . . . . . . Hacks Repelled . | . . . . . . . . . . Allies | -11 -10 -10 -9 -9 -8 -7 -7 -7 -6 -------- Run | Yrd Mat Min Mat Sto Mat Fac Low Dat Pro Total Allies 1 | . . . . . . . . . 1 Largest Group 1 | . . . . . . . . . 1 Highest-Rated Group 96 | . . . . . . . . . 96 Highest-Rated Ally 96 | . . . . . . . . . 96 Total Orders . | . . . . . . . . . . Ally Attacks 12 | . . . . . . . . . 12 Total Damage 593 | . . . . . . . . . 593 Kills 2 | . . . . . . . . . 2 Allies Corrupted . | . . . . . . . . . . Allies Melted . | . . . . . . . . . . Intel | -11 -10 -10 -9 -9 -8 -7 -7 -7 -6 ------- Run | Yrd Mat Min Mat Sto Mat Fac Low Dat Pro Active Infowar (turns) 320 | . 23 111 186 . . . . . . Sensors 320 | . 23 111 186 . . . . . . Robot Analysis Total . | . . . . . . . . . . Derelict Logs Recovered 3 | . . 1 . . . . . . 2 Drone Launches . | . . . . . . . . . . Drone Recoveries . | . . . . . . . . . . Exploration | -11 -10 -10 -9 -9 -8 -7 -7 -7 -6 ------------- Run | Yrd Mat Min Mat Sto Mat Fac Low Dat Pro Turns Passed 2121 | 79 143 111 237 321 431 358 18 44 379 Spaces Moved 2152 | 54 117 91 160 228 132 314 27 88 941 Core 444 | 2 . . . . . 9 27 88 318 Treads 1 | 1 . . . . . . . . . Legs 1084 | 51 117 91 160 228 132 305 . . . Wheels . | . . . . . . . . . . Hover . | . . . . . . . . . . Flight 623 | . . . . . . . . . 623 Fastest Speed 29 | 50 120 120 105 90 100 50 50 50 29 Average Speed 74 | 118 120 120 116 103 102 104 50 50 38 Slowest Speed 186 | 160 120 120 120 105 105 186 50 50 100 Overloaded Moves . | . . . . . . . . . . Propulsion Burnouts . | . . . . . . . . . . Robots Hopped 2 | . . . . . . . . . 2 Potential Cave-ins . | . . . . . . . . . . Cave-ins Triggered . | . . . . . . . . . . Exploration Rate (%) 32 | 4 24 30 12 56 17 9 9 69 91 Regions Visited 9 Branch Regions 5 Pre-discovered Areas 2 | . . . . . . . . 1 1 Known Exits Taken 1 | . . . . 1 . . . . . Unknown Exits Taken 8 | 1 1 1 1 . 1 1 1 1 . Scrap Searched 3 | . . . . . . . 1 . 2 Spaces Dug . | . . . . . . . . . . Terrain Destroyed 33 | . . . . 33 . . . . . Melee . | . . . . . . . . . . Projectile . | . . . . . . . . . . AOE 33 | . . . . 33 . . . . . Terrain Rammed . | . . . . . . . . . . Walls Destroyed . | . . . . . . . . . . Machines Disabled . | . . . . . . . . . . Actions | -11 -10 -10 -9 -9 -8 -7 -7 -7 -6 --------- Run | Yrd Mat Min Mat Sto Mat Fac Low Dat Pro Total 2544 | 66 119 93 194 272 388 339 29 87 957 Wait 217 | . . . . . 215 . . . 2 Move 2139 | 53 116 90 159 227 131 313 26 87 937 Hop 2 | . . . . . . . . . 2 Pick Up 29 | 5 2 1 7 4 4 4 . . 2 Fast Attach 28 | 7 1 . 3 5 3 1 2 . 6 Attach 15 | . . . 2 6 1 3 1 . 2 Detach 6 | 1 . . . 1 1 . . . 3 Swap 13 | . . . 2 3 3 5 . . . Drop 27 | . . 1 9 1 8 7 . . 1 Fire 60 | . . . 12 22 21 3 . . 2 Melee . | . . . . . . . . . . Ram 3 | . . . . . . 3 . . . Kick 5 | . . 1 . 3 1 . . . . Crush . | . . . . . . . . . . Escape Stasis . | . . . . . . . . . . Rewire . | . . . . . . . . . . Trap . | . . . . . . . . . . Miscellaneous . | . . . . . . . . . . Route ------- -11/Scrapyard -10/Materials -10/Mines -9/Materials (discovered 2 exits: Mat / *Sto) -9/Storage -8/Materials -7/Factory (discovered 2 exits: [*Low x2]) -7/Lower Caves -7/Data Miner -6/Proximity Caves History --------- Turn | Location | Event 9 | -11/Scrapyard | Discovered new exit (range 16) 80 | -11/Scrapyard | Entered Materials 186 | -10/Materials | Discovered new exit (range 14) 223 | -10/Materials | Entered Mines 233 | -10/Mines | Learned 2 Materials zone layouts 313 | -10/Mines | Discovered new exit (range 8) 316 | -10/Mines | Build established: Mutant 318 | -10/Mines | Received a Rocket Launcher from a helpful Derelict 334 | -10/Mines | Entered Materials 334 | -9/Materials | Evolved 2 slots: Propulsion x2 335 | -9/Materials | Identified exit to Materials 472 | -9/Materials | Discovered new exit (range 10) 571 | -9/Materials | Entered Storage 781 | -9/Storage | Core integrity fell below 50% 813 | -9/Storage | Destroyed 15 combat bots 853 | -9/Storage | Lost 10 parts (2p4n1u3w) 888 | -9/Storage | Discovered exit to Materials (range 5) 892 | -9/Storage | Entered Materials 892 | -8/Materials | Evolved 2 slots: Utility x2 1190 | -8/Materials | Build established: Scavenger-Mutant 1302 | -8/Materials | Discovered new exit (range 11) 1323 | -8/Materials | Entered Factory 1323 | -7/Factory | Evolved 2 slots: Weapon x2 1643 | -7/Factory | Discovered new exit (range 13) 1677 | -7/Factory | Discovered new exit (range 15) 1681 | -7/Factory | Entered Lower Caves 1682 | -7/Lower Caves | Core integrity fell below 50% 1686 | -7/Lower Caves | Spotted B-75 Beast 1695 | -7/Lower Caves | A Derelict revealed a hidden shortcut to meet someone special 1699 | -7/Lower Caves | Entered Data Miner 1699 | -7/Data Miner | Discovered new exit (range 6) 1709 | -7/Data Miner | Met Data Miner 1712 | -7/Data Miner | Lost 12 parts (1p4n2u5w) 1719 | -7/Data Miner | Learned location of Section 7 (-2) 1719 | -7/Data Miner | Acquired the access code to Warlord's prototype stash 1728 | -7/Data Miner | Received God Mode back door access code from Data Miner 1743 | -7/Data Miner | Entered Proximity Caves 1778 | -6/Proximity Caves | Learned Factory stockpile data 1902 | -6/Proximity Caves | Escorted by Enhanced Grunt 1936 | -6/Proximity Caves | Spotted B-75 Beast 1978 | -6/Proximity Caves | Learned location of Zion (-6) 1983 | -6/Proximity Caves | Attracted the attention of an 0b10 checkpoint 1988 | -6/Proximity Caves | Attracted the attention of an 0b10 base 2015 | -6/Proximity Caves | Core integrity fell below 20% 2045 | -6/Proximity Caves | Lost 3 parts (1n2w) 2070 | -6/Proximity Caves | Found Prototype Device 2070 | -6/Proximity Caves | Identified Exp. Thermal Shield 2122 | -6/Proximity Caves | Destroyed by S-27 Virus with Autogun Last Messages --------------- 01988_ Critical hit (Burn: +37). 01993_ Slug penetrates Machine. 02011_ Gauss Rifle destroyed. 02011_ VTOL Module destroyed. 02014_ Autogun destroyed. 02025_ System corrupted: Component data lost. 02070_ Acquired Prototype Device. 02070_ Identified Exp. Thermal Shield. 02081_ Slug penetrates Wall. 02084_ Penetrated by Slug. 02106_ =MFSPRTGR1IS%X C8NKYY>DVQF 02113_ Searching scrap... 02113_ Found Mak. Spear. 02113_ Found Plasma Rifle. 02113_ Found Remote Shield. 02113_ Found Battle Cannon. 02113_ Found 34 Matter. 02113_ Dropped Carbon-fiber Leg. 02114_ Acquired Battle Cannon. 02116_ VTOL Module destroyed. Map ----- +----------------------------------------------------+ | ?????????????????????????????????????????????????? | | #################????????????????????????????????? | | # %[#??????###???????????????????????? | | /! #?????? ##??????????????????????? | | =#?????? #??????????????????????? | | """ """ #?????? #??????????????????????? | | " """" ##???## #??????????????????????? | | # " " "" ##### #???????????????????????? | | # """ "" ## #?????????? ?????????????? | | # """" """ #???????? #?????????????? | | # """" """ ####### #??????????????? | | ##?????????????? | | """" "" " ### #?????????????? | | "" "" #?# #????????????? | | """" " #?# ### #????????????? | | " " "" #?## ###???? ?????????????? | | "" " """ ??## s##???????????????????????? | | "" " """" ???# #####???????????????????? | | ????# #???????????????????? | | ????# # ##??????????????????? | | ????# # #??????????????????? | | # ## ????# # #??????????????????? | | ## ##??? ?????# # #####??????????????????? | | ###?# #??????????# # #######????????????????? | | ????? #?????????? # #????????????????? | | ????? #?????????#### @ #????????????????? | | ??????? #????????????# "" #????????????????? | | ????????###????????????# """" #????????????????? | | ???????????????????????# """ #????????????????? | | ???????????????????????# " #????????????????? | | ???????????????????????# " #????????????????? | | ??????????????????????? """" #????????????????? | | ??????????????????????? " ? #????????????????? | | ??????????????????????? ??? ?????????????????? | | ??????????????????????## ?????????????????????? | | ???????????????????????#### ?????????????????????? | | ??????????????????????????? ?????????????????????? | | ???????????????????????????#?????????????????????? | | ?????????????????????????????????????????????????? | | ?????????????????????????????????????????????????? | | ?????????????????????????????????????????????????? | | ?????????????????????????????????????????????????? | | ?????????????????????????????????????????????????? | | ?????????????????????????????????????????????????? | | ?????????????????????????????????????????????????? | | ?????????????????????????????????????????????????? | | ?????????????????????????????????????????????????? | | ?????????????????????????????????????????????????? | | ?????????????????????????????????????????????????? | | ?????????????????????????????????????????????????? | +----------------------------------------------------+ Best States ------------- Heat Dissipation 34 Energy Generation 19 Energy Capacity 315 Matter Stores 300 Matter Capacity 300 Sight Range 16 Robot Scan Range 14 Terrain Scan Density 110 Armor Coverage 150 Resistance: TH 30 Propulsion Shielding 66 Evasion (%) 64 Targeting Accuracy 8 Recoil Reduction 2 Offensive Hacking 10 Item Schematics ----------------- Arm. Treads | -9/Storage | Hacked Combat Drone Bay | -7/Data Miner | Free Lgt. Regenerative Plating | -7/Data Miner | Free Cld. Cesium-ion Thruster | -7/Data Miner | Free Exp. Weapon Shielding | -7/Data Miner | Free Force Rifle | -7/Data Miner | Free Field Propulsion Drive | -7/Data Miner | Free Adv. Shield Generator | -7/Data Miner | Free Imp. Remote Datajack | -7/Data Miner | Free Drone Bay | -7/Data Miner | Free Imp. Shock Absorption System | -7/Data Miner | Free Lgt. Antimatter Reactor | -7/Data Miner | Free Robot Schematics ------------------ A-15 Conveyor | -7/Data Miner | Free M-22 Extractor | -7/Data Miner | Free B-48 Gladiator | -7/Data Miner | Free D-53 Grenadier | -7/Data Miner | Free B-60 Warrior | -7/Data Miner | Free X-67 Chaingunner | -7/Data Miner | Free Fabricated ------------ Nothing Repaired ---------- Nothing Alien Tech Used ----------------- None Achievements -------------- None Challenges ------------ None Game ------ Seed PulseTachyonNeutralizer Manual? 0 Play Time 00:26:57 Cumulative 45.5 hours Start 2025.05.31 @ 15:53:24 End 2025.05.31 @ 16:21:57 Sessions 1 Manual Loads 0 Difficulty Rogue Special Mode None Game No. 91 Rogue 91 Adventurer 0 Explorer 0 Win Type - Total 0 Types 0/0/0/0/0/0/0/0/0/0 Lore% 19 Gallery% 33 Achievement% 27 Wizard Run 0 Options --------- Layout 1 ASCII 0 Keyboard 0 Movement Arrows Keybinds 0 Fullscreen 2 Font 24/Smallcaps Map View 50x35 Zoom Use 0% Tactical HUD 1 Map Filters NONE Filters NONE Steam 1 RUN: 1f7c52ce-6b36-4dc4-b291-58d9e2280980